Cogmind - Beta 15 @@@ ROGUE MODE // 2025.08.07 @ 05:26:42 Player: shapeshifter Result: Destroyed by Y-45 Defender with Beam Rifle Performance ------------- Evolutions (0) 0 Regions Visited (2) 400 Robots Destroyed (31) 155 Value Destroyed (827) 827 Prototype IDs (0) 0 Alien Tech Used (0) 0 Bonus (18) 18 TOTAL SCORE: 1400 Bonus ------- Follower Combat Kills 35 Friendly Fire -17 Cogmind --------- Core Integrity 0/250 Matter 238/300 Energy 100/100 System Corruption 0% Temperature Warm (121) Movement Treading (480) Ox4 Location -10/Mines Parts ------- > --- POWER (1) -------- (None) > --- PROPULSION (2) --- Light Treads > --- UTILITY (2) ------ Huge Storage Unit > --- WEAPON (2) ------- Light Assault Rifle > --- INVENTORY (25) --- Ion Engine Heat Sink Improved Terrain Scanner Heavy Battle Rifle Grenade Launcher Grenade Launcher Peak State ------------ > --- POWER ------------ Ion Engine > --- PROPULSION ------- Light Treads Light Treads > --- UTILITY ---------- Small Storage Unit Seismic Detector > --- WEAPON ----------- EM Pulse Gun Medium Laser > --- INVENTORY -------- Light Ion Engine Light Treads Wheel Compact Wheel Heat Sink Improved Terrain Scanner Small Laser Grenade Launcher [Rating: 8] Favorites ----------- Power Ion Engine Engine Ion Engine Propulsion Light Treads Treads Light Treads Wheel Compact Wheel Utility Huge Storage Unit Device Seismic Detector Storage Huge Storage Unit Processor Targeting Computer Weapon Light Cannon Energy Gun EM Pulse Gun Energy Cannon Beam Cannon Ballistic Gun Light Assault Rifle Ballistic Cannon Light Cannon Launcher Grenade Launcher Build | -11 -10 -10 ------- Run | Yrd Mat Min Slots Evolved . | . . . Power . | . . . Propulsion . | . . . Utility . | . . . Weapon . | . . . Parts Attached 19 | 7 12 . Power 3 | 1 2 . Engine 3 | 1 2 . Core . | . . . Reactor . | . . . Propulsion 5 | 2 3 . Treads 3 | 2 1 . Leg . | . . . Wheel 2 | . 2 . Hover . | . . . Flight . | . . . Utility 4 | 2 2 . Device 1 | 1 . . Storage 2 | 1 1 . Processor 1 | . 1 . Hackware . | . . . Protection . | . . . Artifact . | . . . Weapon 7 | 2 5 . Energy Gun 2 | 2 . . Energy Cannon 1 | . 1 . Ballistic Gun 1 | . 1 . Ballistic Cannon 2 | . 2 . Launcher 1 | . 1 . Special Weapon . | . . . Impact Weapon . | . . . Slashing Weapon . | . . . Piercing Weapon . | . . . Special Melee Weapon . | . . . Unidentified Prototypes . | . . . Parts Lost 11 | . 6 5 Power 1 | . . 1 Propulsion 4 | . 2 2 Utility 2 | . 1 1 Weapon 4 | . 3 1 Highest Loss Streak 4 | . 3 4 To Critical Strikes . | . . . Average Backups 6 | 3 6 6 Power . | . 1 1 Propulsion 1 | 1 1 . Utility 2 | . 2 2 Weapon 1 | . 1 2 Tool/Special . | . . . Unused Backups 7 | . 2 5 Power 2 | . 1 1 Propulsion . | . . . Utility 2 | . . 2 Weapon 3 | . 1 2 Tool/Special . | . . . Average Slot Usage (%) 96 | . 98 90 Engine 13 | . 14 13 Treads 10 | . 13 . Wheel 14 | . 13 19 Device 7 | . 8 . Storage 14 | . 14 14 Processor 6 | . 4 14 Energy Gun 4 | . 5 . Energy Cannon 6 | . 4 14 Ballistic Gun 6 | . 4 14 Ballistic Cannon 9 | . 12 . Peak Build Rating 8 | 7 8 7 Average Rating 6 | 4 7 6 On Entrance 4 | . 7 7 Naked Turns . | . . . Heaviest Build 92 | 15 92 89 Greatest Support 40 | 40 40 26 Greatest Overweight (x) 5 | . 3 5 Average Overweight (x) 1 | . 1 3 Largest Inventory Capacity 25 | 8 25 25 Average Capacity 17 | 7 16 25 Most Carried 8 | 6 8 7 Average Carried 6 | 3 6 6 Final Capacity 25 | 8 25 25 Final Carried 6 | 5 6 6 Class Distribution -------------------- 100% | Mutant Dominant Class ---------------- Mutant | -10/Materials Mutant | -10/Mines Resources | -11 -10 -10 ----------- Run | Yrd Mat Min Matter Collected 656 | 231 376 49 Remotely . | . . . Salvage Created 705 | 12 606 87 Parts 52 | 4 43 5 Haulers Intercepted . | . . . Recyclers Shooed . | . . . Parts Field Recycled . | . . . Retrieved Matter . | . . . Parts Self-Destructed . | . . . Prevented . | . . . Kills | -11 -10 -10 ------- Run | Yrd Mat Min Combat Hostiles Destroyed 25 | . 20 5 Guns 1 | . . 1 Cannons 17 | . 13 4 AOE 7 | . 7 . Classes Destroyed 6 | 1 5 . Worker 2 | . 2 . Builder 1 | . 1 . Tunneler 1 | 1 . . Watcher 2 | . 2 . Swarmer 7 | . 3 4 Grunt 18 | . 17 1 Best Kill Streak 8 | 1 8 3 Combat Bots Only 6 | . 6 3 Max Kills in Single Turn 2 | 1 2 1 Gunslinging . | . . . Exploded 2 | . 2 . Melee . | . . . Uniques/NPCs Destroyed . | . . . Combat | -11 -10 -10 -------- Run | Yrd Mat Min Hostile Shots Fired 166 | . 106 60 Missed 51 | . 34 17 Hits 115 | . 72 43 Projectile 115 | . 72 43 Critical Strikes 3 | . 2 1 Damage Taken 1457 | . 1063 394 Core 251 | . 168 83 Absorbed by Shields . | . . . Core Remaining (%) 100 | 100 . . Volleys Fired 84 | 1 64 19 Largest 2 | 2 2 2 Hottest 90 | 90 90 80 Shots Fired 156 | 2 117 37 Gun 45 | 2 24 19 Cannon 107 | . 89 18 Launcher 4 | . 4 . Special . | . . . Kinetic 108 | . 89 19 Thermal 35 | 1 16 18 Explosive 4 | . 4 . Electromagnetic 9 | 1 8 . Robot Hit Streak 7 | . 7 3 Robot Miss Streak 5 | 2 3 5 Penetration Max . | . . . Secondary Targets . | . . . Shots Hit Robots 75 | . 63 12 Core Hits 52 | 1 41 10 Critical Kills . | . . . Critical Parts Destroyed 1 | . 1 . Critical Strikes 2 | . 2 . Destroy 1 | . 1 . Blast 1 | . 1 . Melee Attacks . | . . . Impact . | . . . Slashing . | . . . Piercing . | . . . Sneak Attacks . | . . . Combat Hostiles . | . . . Follow-up Attacks . | . . . Damage Inflicted 2176 | 15 1920 241 Guns 218 | 15 136 67 Cannons 1058 | . 884 174 Explosions 900 | . 900 . Melee . | . . . Ramming . | . . . Kinetic 885 | . 818 67 Thermal 463 | . 289 174 Explosive 522 | . 522 . Electromagnetic 306 | 15 291 . Impact . | . . . Slashing . | . . . Piercing . | . . . Highest Corruption . | . . . Average Corruption . | . . . Corruption Purged . | . . . Corruption Blocked . | . . . Overload Shots . | . . . Overflow Damage 5 | . 5 . Projectiles 5 | . 5 . Explosions . | . . . Melee . | . . . Knockbacks 4 | . 4 . Impact . | . . . Kinetic 4 | . 4 . Secondary . | . . . Self-Inflicted Damage 225 | . 225 . Shots 3 | . 3 . Rammed . | . . . Targets Rammed . | . . . Kicked . | . . . Crushed . | . . . Highest Temperature 180 | 30 115 180 Average Temperature 53 | 18 46 76 Received Heat Transfer 531 | . 489 42 Siege Activations . | . . . Martial Activations . | . . . Shielding Activations . | . . . Robots Disrupted . | . . . Combat Hostiles . | . . . Robots Corrupted . | . . . Combat Hostiles . | . . . Parts Fried . | . . . Impact Corruptions . | . . . Robots Melted . | . . . Combat Hostiles . | . . . Parts Melted 1 | . 1 . Heat Transferred 766 | . 396 370 Parts Sabotaged . | . . . Parts Stolen . | . . . Parts Stripped . | . . . Power Chain Reactions 1 | . 1 . Alert | -11 -10 -10 ------- Run | Yrd Mat Min Maximum Alert Level 1 | . 1 . Low Security (%) 72 | 100 64 100 Level 1 27 | . 35 . Level 2 . | . . . Level 3 . | . . . Level 4 . | . . . Level 5 . | . . . High Security . | . . . Max Security . | . . . Peak Influence 297 | . 297 86 Initial 86 | . . 86 Average 126 | . 154 51 Influence Increases 837 | 5 679 153 Destroy 0b10 Robot/C 520 | . 400 120 Destroy 0b10 Robot/NC 30 | 5 25 . Destroy Leader 114 | . 84 30 Allied During Kill 3 | . . 3 Successful Hack 12 | . 12 . Disable Machine 90 | . 90 . Destroy Structure 68 | . 68 . Influence Decreases 818 | 5 456 357 Entered New Map 137 | . . 137 Time Decay 551 | 5 396 150 Lost Part 110 | . 60 50 Lost Ally 20 | . . 20 Squads Dispatched 4 | . 4 . Investigation 4 | . 4 . Extermination . | . . . Reinforcement . | . . . Assault . | . . . Garrison . | . . . Intercept . | . . . Searches Triggered . | . . . Construction Impeded . | . . . Haulers Reinforced . | . . . Active Scanning Responses . | . . . Cargo Convoy Interrupts . | . . . Stealth | -11 -10 -10 --------- Run | Yrd Mat Min Distress Signals 4 | . 3 1 Communications Jammed . | . . . Distress Signals . | . . . Times Spotted 37 | . 27 10 Peak Tracking Total 5 | . 5 5 Tactical Retreats . | . . . Traps | -11 -10 -10 ------- Run | Yrd Mat Min Traps Triggered 1 | . 1 . Indirectly . | . . . Trap Hack Attempts . | . . . Triggered . | . . . Disarmed . | . . . Reprogrammed . | . . . Reused . | . . . Traps Extracted . | . . . Installed . | . . . Triggered . | . . . Machines | -11 -10 -10 ---------- Run | Yrd Mat Min Machines Disabled 6 | . 6 . Max in Single Turn 2 | . 2 . Machines Repaired . | . . . Machines Dismantled . | . . . Machines Sabotaged . | . . . Overloaded Fab Kills . | . . . Hacking | -11 -10 -10 --------- Run | Yrd Mat Min Machines Accessed 8 | . 8 . Terminals 8 | . 8 . Fabricators . | . . . Repair Stations . | . . . Recycling Units . | . . . Scanalyzers . | . . . Garrison Access . | . . . Total Hacks 22 | . 22 . Successful 7 | . 7 . Failed 15 | . 15 . Catastrophic 1 | . 1 . Database Lockouts . | . . . Manual 17 | . 17 . Terminals 22 | . 22 . Fabricators . | . . . Repair Stations . | . . . Recycling Units . | . . . Scanalyzers . | . . . Garrison Access . | . . . Terminal Hacks 6 | . 6 . Branch Access Points 1 | . 1 . Emergency Access Points 1 | . 1 . Registered Components 1 | . 1 . Zone Layout 3 | . 3 . Fabricator Hacks . | . . . Repair Station Hacks . | . . . Recycling Unit Hacks . | . . . Scanalyzer . | . . . Garrison Access Hacks . | . . . Unauthorized Hacks 1 | . 1 . Terminals 1 | . 1 . Botnet 1 | . 1 . Fabricators . | . . . Repair Stations . | . . . Recycling Units . | . . . Scanalyzers . | . . . Garrison Access . | . . . Data Cores Recovered . | . . . Used . | . . . Hacking Detections 7 | . 7 . Full Trace Events 5 | . 5 . Feedback Events . | . . . Feedback Blocked . | . . . Robot Schematics Acquired . | . . . Robots Built . | . . . Authchips . | . . . Time . | . . . Total Robot Build Rating . | . . . Part Schematics Acquired . | . . . Parts Built . | . . . Authchips . | . . . Time . | . . . Total Part Build Rating . | . . . Parts Repaired . | . . . Time . | . . . Parts Recycled . | . . . Recycled Matter . | . . . Retrieved Matter . | . . . Retrieved Components . | . . . Parts Scanalyzed . | . . . Part Schematics Acquired . | . . . Parts Damaged . | . . . Bothacking | -11 -10 -10 ------------ Run | Yrd Mat Min Used RIF Installer . | . . . Robots Hacked . | . . . Non-combat . | . . . Combat . | . . . Robot Hacks Applied . | . . . Relay Couplers Released . | . . . Fabnet Peak Effective % . | . . . Robots Rewired . | . . . Allies Hacked . | . . . Hacks Repelled . | . . . Allies | -11 -10 -10 -------- Run | Yrd Mat Min Total Allies 1 | . . 1 Largest Group 1 | . . 1 Highest-Rated Group 31 | . . 31 Highest-Rated Ally 31 | . . 31 Total Orders . | . . . Ally Attacks 6 | . . 6 Total Damage 106 | . . 106 Kills 1 | . . 1 Allies Corrupted . | . . . Allies Melted . | . . . Intel | -11 -10 -10 ------- Run | Yrd Mat Min Active Infowar (turns) 816 | 2 814 . Seismic 816 | 2 814 . Robot Analysis Total . | . . . Derelict Logs Recovered 1 | . . 1 Drone Launches . | . . . Drone Recoveries . | . . . Exploration | -11 -10 -10 ------------- Run | Yrd Mat Min Turns Passed 1667 | 94 1265 308 Spaces Moved 915 | 52 718 145 Core 9 | 9 . . Treads 358 | 43 315 . Legs . | . . . Wheels 548 | . 403 145 Hover . | . . . Flight . | . . . Fastest Speed 50 | 50 135 135 Average Speed 146 | 140 145 153 Slowest Speed 175 | 160 160 175 Overloaded Moves . | . . . Propulsion Burnouts . | . . . Robots Hopped . | . . . Potential Cave-ins . | . . . Cave-ins Triggered . | . . . Exploration Rate (%) 45 | 3 93 39 Regions Visited 2 Branch Regions 1 Pre-discovered Areas . | . . . Known Exits Taken 1 | . 1 . Unknown Exits Taken 1 | 1 . . Scrap Searched . | . . . Spaces Dug . | . . . Terrain Destroyed 95 | . 95 . Melee . | . . . Projectile . | . . . AOE 95 | . 95 . Terrain Rammed . | . . . Walls Destroyed . | . . . Machines Disabled . | . . . Actions | -11 -10 -10 --------- Run | Yrd Mat Min Total 1092 | 71 823 198 Wait 45 | . 13 32 Move 913 | 51 717 145 Hop . | . . . Pick Up 24 | 12 11 1 Fast Attach 1 | . 1 . Attach 14 | 7 6 1 Detach . | . . . Swap 5 | . 5 . Drop 6 | . 6 . Fire 84 | 1 64 19 Melee . | . . . Ram . | . . . Kick . | . . . Crush . | . . . Escape Stasis . | . . . Rewire . | . . . Trap . | . . . Miscellaneous . | . . . Route ------- -11/Scrapyard -10/Materials (discovered 4 exits: [*Mat x3] / *Min) -10/Mines (discovered 1 exit: [*Exi]) History --------- Turn | Location | Event 5 | -11/Scrapyard | Discovered new exit (range 16) 95 | -11/Scrapyard | Entered Materials 332 | -10/Materials | Build established: Mutant 333 | -10/Materials | Discovered new exit (range 8) 446 | -10/Materials | Identified exit to Mines 632 | -10/Materials | Discovered new exit (range 12) 903 | -10/Materials | Core integrity fell below 50% 953 | -10/Materials | Lost 3 parts (1u2w) 1011 | -10/Materials | Discovered new exit (range 14) 1360 | -10/Materials | Entered Mines 1378 | -10/Mines | Deemed a non-threat by the Exiles lab entrance 1378 | -10/Mines | Discovered new exit (range 5) 1516 | -10/Mines | A weapon hastily lodged in a ceiling crevice suddenly fell to the ground 1527 | -10/Mines | Escorted by a lone wolf Derelict 1648 | -10/Mines | Core integrity fell below 20% 1668 | -10/Mines | Destroyed by Y-45 Defender with Beam Rifle Last Messages --------------- 01619_ K-01 Serf collects debris. 01620_ R-06 Scavenger collects Aluminum Leg. 01621_ Acquired 34 matter. 01622_ K-01 Serf collects debris. 01623_ R-06 Scavenger collects Aluminum Leg. 01624_ R-06 Scavenger collects Particle Gun. 01627_ R-06 Scavenger collects Aluminum Leg. 01629_ R-06 Scavenger collects Sml. Laser. 01629_ K-01 Serf collects debris. 01645_ Com. Wheel destroyed. 01647_ 3Z-8G6(g): "Mission, incomplete...*fzzt*" 01647_ 3Z-8G6(g) destroyed. 01650_ T-07 Excavator sends out distress signal. 01652_ R-06 Scavenger collects Lgt. Angular Momentum Engine. 01654_ S-10 Pest destroyed. 01657_ Ion Engine destroyed. 01659_ S-10 Pest destroyed. 01665_ Targeting Computer destroyed. 01666_ Beam Cannon destroyed. Map ----- +----------------------------------------------------+ | ?????????????????????????????????????????????????? | | ?????????????????????????????????????????????????? | | ?????????????????????????????????????????????????? | | ?????????????????????????????????????????????????? | | ?????????????????????????????????????????????????? | | ?????????????????????????????????????????????????? | | ?????????????????????????????????????????????????? | | ## ##????????????????????????????????????????????? | | #????????????????????????????????????????????? | | ##????????????????????????????????????????????? | | ###?????????????????????????????????????????????? | | ##???????????????????????????????????????????????? | | ?????????????????????????????????????????????????? | | ???????????????????????????????####??????????????? | | ?#####????????????????????????# ##?????????????? | | ## ##???#??????????????????# ##????????????? | | # #??? ??????????????#### ?????????????? | | # #??? ??????????????# ??????????????? | | # #??# #?????????????# ???????????????? | | # ##?# #?????????????/ #????????????????? | | ### #?????????????/ #?????????????????? | | #?????????????#YY #?????????????????? | | #?# #????????????## #??????????????????? | | ##?# #????????????# !%############????????? | | # #??# #????????????# %=%* s r ?????? | | ## #### #####????????#@ =[= ?????? | | ?# ####????## ####### #????????????? | | ?# ###### ##??## #???????????????????? | | ?# #????# #### #???????????????????? | | ?# ##????# % #???????????????????? | | ?# ##?????## #???????????????????? | | ?####???????#### #### ##???????????????????? | | ???????????????## #?## ##????????????????????? | | ????????????????## #?### #?????????????????????? | | ?????????????????# ?? #?????????????????????? | | ?????????????????# ? #?????????????????????? | | ?????????????????# ######?????????????????????? | | ?????????????????## ##??????????????????????????? | | ???????????????????###???????????????????????????? | | ?????????????????????????????????????????????????? | | ?????????????????????????????????????????????????? | | ?????????????????????????????????????????????????? | | ?????????????????????????????????????????????????? | | | | | | | | | | | | | | | +----------------------------------------------------+ Best States ------------- Heat Dissipation 25 Energy Generation 10 Energy Capacity 250 Matter Stores 271 Matter Capacity 300 Sight Range 16 Terrain Scan Density 10 Evasion (%) 40 Targeting Accuracy 5 Recoil Reduction 2 Item Schematics ----------------- None Robot Schematics ------------------ None Fabricated ------------ Nothing Repaired ---------- Nothing Alien Tech Used ----------------- None Achievements -------------- None Challenges ------------ None Game ------ Seed UtilityPowerWell Manual? 0 Play Time 00:10:40 Cumulative 108.2 hours Start 2025.08.07 @ 05:17:12 End 2025.08.07 @ 05:26:42 Sessions 1 Manual Loads 0 Difficulty Rogue Special Mode None Game No. 194 Rogue 194 Adventurer 0 Explorer 0 Win Type - Total 1 Types 1/0/0/0/0/0/0/0/0/0 Lore% 68 Gallery% 61 Achievement% 43 Wizard Run 0 Options --------- Layout 1 ASCII 0 Keyboard 0 Movement Mouse Keybinds 0 Fullscreen 1 Font 24/Smallcaps Map View 50x35 Zoom Use 0% Tactical HUD 1 Map Filters NONE Filters NONE Steam 1 RUN: b9253f4d-2dbf-4a38-84f3-5e7c8a8be462